fUST/lending_fUST_20250604
["ID","MTS","AMOUNT","RATE_DAILY","PERIOD"]
[364104091,1749000640511,-2000.0,0.00023287,2]
[364104093,1749000640521,-503.34123024,0.00023287,2]
[364104094,1749000640530,-741.13,0.00023291,6]
[364104096,1749000640540,-1892.0337929,0.000233,15]
[364104099,1749000640550,-153.0,0.00023315,2]
[364104100,1749000640559,-153.0,0.00023315,2]
[364104102,1749000640568,-158.5442955,0.00023315,2]
[364104104,1749000640578,-572.6068135,0.00023315,2]
[364104106,1749000640587,-296.8702805,0.00023315,2]
[364104108,1749000640596,-160.0,0.00023334,3]
[364104110,1749000640606,-741.13,0.00023391,5]
[364104113,1749000640618,-1580.81026283,0.00023452,9]
[364104115,1749000640627,-741.13,0.00023491,5]
[364104117,1749000640637,-1000.0,0.00023521,2]
[364104119,1749000640647,-741.13,0.00023591,6]
[364104121,1749000640663,-151.0,0.000236,7]
[364104123,1749000640672,-1170.75,0.000236,7]
[364104125,1749000640683,-1756.184922,0.0002366,3]
[364104127,1749000640692,-741.13,0.00023691,7]
[364104129,1749000640703,-1580.81026283,0.00023693,9]
[364104131,1749000640712,-68797.82673063,0.000237,7]
[364104133,1749000640722,-1986.0262238,0.00023728,2]
[364104135,1749000640733,-741.13,0.00023791,3]
[364104137,1749000640744,-85982.88193369,0.000238,2]
[364104139,1749000640754,-25392.54230145,0.000238,3]
[364104141,1749000640765,-151.0,0.000238,9]
[364104143,1749000640775,-275.5,0.000238,8]
[364104145,1749000640784,-1336.54,0.000238,2]
[364104147,1749000640794,-151.0,0.000238,10]
[364104149,1749000640803,-78784.52451005,0.000238,2]
[364104395,1749001182806,8040.2267474,0.00024649,120]
[364104397,1749001307472,279.248104,0.00013699,2]
[364104402,1749001604719,436.87,0.00024658,120]
[364104438,1749001811237,221.19,0.0001551,2]
[364104474,1749001837869,-430.4179918,0.00016313,2]
[364104476,1749001837879,-300.0,0.00016967,2]
[364104478,1749001837890,-440.0,0.00016967,2]
[364104480,1749001837899,-440.0,0.00016967,2]
[364104482,1749001837909,-300.0,0.00016967,2]
[364104484,1749001837919,-440.0,0.00016967,2]
[364104486,1749001837930,-440.0,0.00016967,2]
[364104487,1749001837940,-440.0,0.00016967,2]
[364104488,1749001837950,-440.0,0.00016967,2]
[364104490,1749001837959,-430.0,0.00016967,2]
[364104492,1749001837968,-430.92189797,0.00016968,2]
[364104494,1749001837978,-434.1548375,0.00016968,2]
[364104497,1749001837987,-440.58584117,0.00016968,2]
[364104500,1749001837996,-431.83287138,0.00016968,2]
[364104503,1749001838006,-230.83379737,0.00016968,2]
[364104505,1749001838015,-403.0915123,0.00016968,2]
[364104506,1749001838024,-443.17932937,0.00016968,2]
[364104507,1749001838033,-433.18104678,0.00016968,2]
[364104508,1749001838042,-430.94103402,0.00016968,2]
[364104509,1749001838052,-434.81045387,0.00016968,2]
[364104510,1749001838062,-448.82031128,0.00016968,2]
[364104511,1749001838071,-433.72247038,0.00016968,2]
[364104512,1749001838080,-430.80518927,0.00016968,2]
[364104513,1749001838092,-430.0,0.00016968,2]
[364104514,1749001838100,-453.72288419,0.00016968,2]
[364104515,1749001838110,-437.13223127,0.00016968,2]
[364104516,1749001838119,-447.827277,0.00016968,2]
[364104517,1749001838128,-430.0,0.00016968,2]
[364104518,1749001838137,-437.92209317,0.00016968,2]
[364104519,1749001838146,-438.96473029,0.00016968,2]
[364104520,1749001838155,-174.40432382,0.00016968,2]
[364104521,1749001838166,-442.62903522,0.00016968,2]
[364104522,1749001838175,-443.65111529,0.00016968,2]
[364104523,1749001838184,-443.32851862,0.00016968,2]
[364104524,1749001838193,-350.58208313,0.00016968,2]
[364104525,1749001838203,-440.0,0.00016968,2]
[364104526,1749001838213,-448.15995988,0.00016968,2]
[364104527,1749001838222,-199.52108788,0.00016968,2]
[364104528,1749001838231,-440.0,0.00016968,2]
[364104529,1749001838239,-439.86829182,0.00016968,2]
[364104530,1749001838249,-452.23134378,0.00016968,2]
[364104531,1749001838258,-440.0,0.00016968,2]
[364104532,1749001838267,-432.29216292,0.00016968,2]
[364104533,1749001838277,-432.65054917,0.00016968,2]
[364104534,1749001838286,-430.0,0.00016968,2]
[364104535,1749001838296,-446.64305447,0.00016968,2]
[364104536,1749001838305,-438.68155314,0.00016968,2]
[364104537,1749001838314,-436.47733634,0.00016968,2]
[364104538,1749001838324,-440.0,0.00016968,2]
[364104539,1749001838333,-440.0,0.00016968,2]
[364104540,1749001838343,-440.0,0.00016968,2]
[364104541,1749001838353,-442.71129028,0.00016968,2]
[364104542,1749001838363,-436.99193705,0.00016968,2]
[364104543,1749001838373,-441.26576804,0.00016968,2]
[364104544,1749001838382,-524.71323358,0.00016968,2]
[364104545,1749001838392,-432.52827224,0.00016968,2]
[364104546,1749001838402,-430.0,0.00016968,2]
[364104547,1749001838412,-440.0,0.00016968,2]
[364104548,1749001838421,-459.41687379,0.00016968,2]
[364104549,1749001838431,-444.00667807,0.00016968,2]
[364104550,1749001838442,-440.0,0.00016968,2]
[364104551,1749001838452,-430.56809899,0.00016968,2]
[364104552,1749001838462,-440.86051761,0.00016968,2]
[364104553,1749001838473,-442.06678165,0.00016968,2]
[364104554,1749001838482,-444.02518276,0.00016968,2]
[364104555,1749001838491,-437.66183314,0.00016968,2]
[364104556,1749001838501,-442.83622971,0.00016968,2]
[364104557,1749001838510,-446.95560544,0.00016968,2]
[364104558,1749001838520,-441.64640983,0.00016968,2]
[364104559,1749001838530,-440.80457061,0.00016968,2]
[364104560,1749001838540,-444.10104605,0.00016968,2]
[364104561,1749001838559,-151.81383833,0.00016968,2]
[364104562,1749001838570,-431.85923875,0.00016968,2]
[364104563,1749001838582,-430.40898799,0.00016968,2]
[364104564,1749001838592,-446.27437309,0.00016968,2]
[364104565,1749001838602,-157.5064907,0.00016968,2]
[364104566,1749001838612,-442.78320036,0.00016968,2]
[364104567,1749001838622,-401.11986809,0.00016968,2]
[364104568,1749001838632,-439.18929194,0.00016968,2]
[364104569,1749001838642,-435.7739596,0.00016968,2]
[364104570,1749001838651,-495.25580727,0.00016968,2]
[364104571,1749001838662,-438.01766789,0.00016968,2]
[364104572,1749001838671,-540.11181465,0.00016968,2]
[364104573,1749001838681,-449.1072914,0.00016968,2]
[364104574,1749001838691,-443.45306503,0.00016968,2]
[364104575,1749001838701,-430.0,0.00016968,2]
[364104576,1749001838711,-441.46446297,0.00016968,2]
[364104577,1749001838721,-440.64479449,0.00016968,2]
[364104578,1749001838730,-440.0,0.00016968,2]
[364104579,1749001838740,-447.29365258,0.00016968,2]
[364104580,1749001838749,-446.28751705,0.00016968,2]
[364104581,1749001838759,-459.94008281,0.00016968,2]
[364104582,1749001838768,-446.68234251,0.00016968,2]
[364104583,1749001838778,-443.25867996,0.00016968,2]
[364104584,1749001838788,-431.78614331,0.00016968,2]
[364104585,1749001838798,-441.7228135,0.00016968,2]
[364104586,1749001838807,-459.44727603,0.00016968,2]
[364104587,1749001838817,-440.0,0.00016968,2]
[364104588,1749001838826,-443.35175545,0.00016968,2]
[364104589,1749001838835,-430.37774155,0.00016968,2]
[364104590,1749001838845,-430.88291499,0.00016968,2]
[364104591,1749001838855,-440.0,0.00016968,2]
[364104592,1749001838864,-444.8097862,0.00016968,2]
[364104593,1749001838873,-435.41615835,0.00016968,2]
[364104594,1749001838883,-444.77178942,0.00016968,2]
[364104595,1749001838892,-444.92598421,0.00016968,2]
[364104596,1749001838902,-441.54121016,0.00016968,2]
[364104597,1749001838912,-441.19568117,0.00016968,2]
[364104598,1749001838921,-430.48183754,0.00016968,2]
[364104599,1749001838931,-441.53918888,0.00016968,2]
[364104600,1749001838941,-354.23464553,0.00016968,2]
[364104601,1749001838950,-432.98627968,0.00016968,2]
[364104602,1749001838960,-446.22524207,0.00016968,2]
[364104603,1749001838969,-443.07815214,0.00016968,2]
[364104604,1749001838979,-435.38240642,0.00016968,2]
[364104605,1749001838989,-446.88467378,0.00016968,2]
[364104606,1749001839148,-435.91417754,0.00016968,2]
[364104607,1749001839160,-440.0,0.00016968,2]
[364104608,1749001839170,-444.87761554,0.00016968,2]
[364104609,1749001839180,-188.31697214,0.00016968,2]
[364104610,1749001839190,-440.964079,0.00016968,2]
[364104611,1749001839200,-442.63462096,0.00016968,2]
[364104612,1749001839211,-443.00357072,0.00016968,2]
[364104613,1749001839221,-444.27300045,0.00016968,2]
[364104614,1749001839231,-444.21661399,0.00016968,2]
[364104615,1749001839241,-441.25252842,0.00016968,2]
[364104616,1749001839251,-478.84257984,0.00016968,2]
[364104617,1749001839261,-440.0,0.00016968,2]
[364104618,1749001839271,-448.41819462,0.00016968,2]
[364104619,1749001839282,-440.88858106,0.00016968,2]
[364104620,1749001839291,-441.62163677,0.00016968,2]
[364104621,1749001839301,-442.96122168,0.00016968,2]
[364104622,1749001839311,-360.79444465,0.00016968,2]
[364104623,1749001839321,-318.84153757,0.00016968,2]
[364104624,1749001839331,-431.15458737,0.00016968,2]
[364104625,1749001839341,-441.27838753,0.00016968,2]
[364104626,1749001839350,-440.33355257,0.00016968,2]
[364104627,1749001839360,-440.0,0.00016968,2]
[364104628,1749001839370,-431.85255573,0.00016968,2]
[364104629,1749001839380,-440.0,0.00016968,2]
[364104630,1749001839389,-452.21581821,0.00016968,2]
[364104631,1749001839399,-446.20223324,0.00016968,2]
[364104632,1749001839408,-347.9317554,0.00016968,2]
[364104633,1749001839417,-447.33375047,0.00016968,2]
[364104634,1749001839427,-445.35373938,0.00016968,2]
[364104635,1749001839436,-444.23392485,0.00016968,2]
[364104636,1749001839446,-450.6193301,0.00016968,2]
[364104637,1749001839454,-441.9004084,0.00016968,2]
[364104638,1749001839464,-502.36254079,0.00016968,2]
[364104639,1749001839473,-441.0020938,0.00016968,2]
[364104640,1749001839483,-431.20551199,0.00017241,2]
[364104641,1749001839492,-435.33308213,0.00017241,2]
[364104642,1749001839501,-440.89159324,0.00017241,2]
[364104643,1749001839511,-447.3754686,0.00017241,2]
[364104644,1749001839521,-434.63965544,0.00017241,2]
[364104645,1749001839530,-446.63810257,0.00017241,2]
[364104646,1749001839539,-444.05625868,0.00017241,2]
[364104647,1749001839549,-431.18622924,0.00017241,2]
[364104648,1749001839559,-449.93764939,0.00017241,2]
[364104649,1749001839569,-403.32607827,0.00017241,2]
[364104650,1749001839579,-450.79351474,0.00017241,2]
[364104651,1749001839589,-447.12208221,0.00017241,2]
[364104652,1749001839599,-452.22530489,0.00017241,2]
[364104653,1749001839609,-452.04228063,0.00017241,2]
[364104654,1749001839619,-451.12835272,0.00017241,2]
[364104655,1749001839629,-451.06932132,0.00017241,2]
[364104656,1749001839638,-300.42586271,0.00017241,2]
[364104657,1749001839649,-430.0,0.00017241,2]
[364104658,1749001839659,-443.11681066,0.00017241,2]
[364104659,1749001839669,-449.65694276,0.00017241,2]
[364104660,1749001839679,-433.46333205,0.00017241,2]
[364104661,1749001839688,-442.10676314,0.00017241,2]
[364104662,1749001839698,-442.4930032,0.00017241,2]
[364104663,1749001839707,-444.28281637,0.00017241,2]
[364104664,1749001839717,-441.70398742,0.00017241,2]
[364104665,1749001839727,-441.31524347,0.00017241,2]
[364104666,1749001839737,-517.41446567,0.00017241,2]
[364104667,1749001839747,-450.31946783,0.00017241,2]
[364104668,1749001839757,-446.74649996,0.00017241,2]
[364104669,1749001839767,-433.02023611,0.00017241,2]
[364104670,1749001839776,-449.41697352,0.00017241,2]
[364104671,1749001839786,-501.72686968,0.00017241,2]
[364104672,1749001839795,-384.51229266,0.00017241,2]
[364104673,1749001839804,-431.18964997,0.00017241,2]
[364104674,1749001839813,-432.32232094,0.00017241,2]
[364104675,1749001839823,-447.11848685,0.00017241,2]
[364104676,1749001839833,-443.28481233,0.00017241,2]
[364104677,1749001839843,-440.0,0.00017241,2]
[364104678,1749001839854,-503.46570504,0.00017241,2]
[364104679,1749001839864,-443.20379905,0.00017241,2]
[364104680,1749001839874,-441.44435515,0.00017241,2]
[364104681,1749001839883,-441.09839791,0.00017241,2]
[364104682,1749001839893,-440.0,0.00017241,2]
[364104683,1749001839903,-430.88564758,0.00017241,2]
[364104684,1749001839913,-442.44087722,0.00017241,2]
[364104685,1749001839923,-441.64473023,0.00017241,2]
[364104686,1749001839932,-440.0,0.00017241,2]
[364104687,1749001839942,-443.13528342,0.00017241,2]
[364104688,1749001839952,-445.21672144,0.00017241,2]
[364104689,1749001839961,-440.0,0.00017241,2]
[364104690,1749001839971,-443.26325767,0.00017241,2]
[364104691,1749001840189,-443.42310226,0.00017241,2]
[364104692,1749001840199,-440.0,0.00017241,2]
[364104693,1749001840209,-427.46702632,0.00017241,2]
[364104694,1749001840219,-400.9778681,0.00017241,2]
[364104695,1749001840229,-448.24181984,0.00017242,2]
[364104696,1749001840238,-433.94152853,0.00017242,2]
[364104697,1749001840248,-439.96172501,0.00017242,2]
[364104698,1749001840258,-201.3951653,0.00017242,2]
[364104699,1749001840267,-455.4749685,0.00017242,2]
[364104700,1749001840278,-231.22874577,0.00017242,2]
[364104701,1749001840288,-433.76640779,0.00017242,2]
[364104702,1749001840298,-330.9409084,0.00017242,2]
[364104703,1749001840308,-439.33288312,0.00017242,2]
[364104704,1749001840318,-383.57976161,0.00017242,2]
[364104705,1749001840327,-439.47904283,0.00017242,2]
[364104706,1749001840337,-362.81585353,0.00017242,2]
[364104707,1749001840346,-436.56678842,0.00017242,2]
[364104708,1749001840356,-435.79527849,0.00017242,2]
[364104709,1749001840366,-438.70625043,0.00017242,2]
[364104710,1749001840377,-584.02,0.00017385,2]
[364104711,1749001840387,-440.0,0.00017385,2]
[364104712,1749001840396,-440.0,0.00017385,2]
[364104713,1749001840406,-358.77319305,0.00017385,2]
[364104714,1749001840417,-456.28,0.00017385,2]
[364104715,1749001840427,-440.0,0.00017385,2]
[364104716,1749001840438,-493.75536243,0.00017385,2]
[364104717,1749001840447,-506.24834383,0.00017385,2]
[364104718,1749001840457,-454.04616639,0.00017385,2]
[364104719,1749001840466,-469.51162718,0.00017385,2]
[364104720,1749001840477,-467.46203255,0.00017385,2]
[364104721,1749001840487,-440.0,0.00017385,2]
[364104722,1749001840497,-440.0,0.00017385,2]
[364104723,1749001840507,-440.0,0.00017385,2]
[364104724,1749001840516,-440.0,0.00017385,2]
[364104725,1749001840526,-343.55965127,0.00017385,2]
[364104726,1749001840536,-1251.22,0.00017385,2]
[364104727,1749001840546,-440.0,0.00017385,2]
[364104728,1749001840555,-24900.0,0.00017386,2]
[364104729,1749001840564,-1251.22,0.00017514,2]
[364104730,1749001840575,-459.77843173,0.00017515,2]
[364104731,1749001840584,-454.69171975,0.00017515,2]
[364104732,1749001840594,-440.0,0.00017515,2]
[364104733,1749001840604,-440.0,0.00017515,2]
[364104734,1749001840614,-440.0,0.00017515,2]
[364104735,1749001840623,-440.0,0.00017515,2]
[364104736,1749001840633,-440.0,0.00017515,2]
[364104737,1749001840642,-440.0,0.00017515,2]
[364104738,1749001840652,-440.0,0.00017515,2]
[364104739,1749001840662,-440.0,0.00017515,2]
[364104740,1749001840671,-440.0,0.00017515,2]
[364104741,1749001840681,-440.0,0.00017515,2]
[364104742,1749001840690,-150.77394187,0.00017515,2]
[364104743,1749001840700,-581.11082908,0.00017515,2]
[364104744,1749001840710,-440.0,0.00017515,2]
[364104745,1749001840719,-151.0,0.00017547,2]
[364104746,1749001840728,-151.0,0.00017574,2]
[364104747,1749001840738,-199.67250161,0.00017602,2]
[364104748,1749001840747,-584.02,0.00017659,2]
[364104749,1749001840757,-440.0,0.00017659,2]
[364104750,1749001840767,-440.0,0.00017659,2]
[364104751,1749001840776,-456.28,0.00017659,2]
[364104752,1749001840786,-258.61145473,0.00017659,2]
[364104753,1749001840796,-440.0,0.00017659,2]
[364104754,1749001840805,-487.76870204,0.00017659,2]
[364104755,1749001840815,-440.0,0.00017659,2]
[364104756,1749001840824,-475.46386671,0.00017659,2]
[364104757,1749001840834,-356.82348349,0.00017659,2]
[364104758,1749001840843,-440.0,0.00017789,2]
[364104759,1749001840853,-440.0,0.00017789,2]
[364104760,1749001840863,-440.0,0.00017789,2]
[364104761,1749001840872,-440.0,0.00017789,2]
[364104762,1749001840882,-440.0,0.00017789,2]
[364104763,1749001840892,-474.13494132,0.00017789,2]
[364104764,1749001840902,-440.0,0.00017789,2]
[364104765,1749001840911,-574.67906719,0.00017789,2]
[364104766,1749001840920,-440.0,0.00017789,2]
[364104767,1749001840930,-286.6468744,0.00017789,2]
[364104768,1749001840941,-440.0,0.00017789,2]
[364104769,1749001840951,-440.0,0.00017789,2]
[364104770,1749001840960,-1548.23234848,0.000179,2]
[364104771,1749001840970,-584.02,0.00017933,2]
[364104772,1749001840980,-440.0,0.00017933,2]
[364104773,1749001840990,-440.0,0.00017933,2]
[364104774,1749001840999,-456.28,0.00017933,2]
[364104775,1749001841009,-440.0,0.00017933,2]
[364104776,1749001841019,-440.0,0.00017933,2]
[364104777,1749001841029,-500.57114652,0.0001795,2]
[364104778,1749001841039,-440.0,0.00018063,2]
[364104779,1749001841049,-440.0,0.00018063,2]
[364104780,1749001841059,-440.0,0.00018063,2]
[364104781,1749001841068,-440.0,0.00018063,2]
[364104782,1749001841079,-437.1609377,0.00018063,2]
[364104783,1749001841092,-441.33810003,0.00018063,2]
[364104784,1749001841101,-440.0,0.00018063,2]
[364104785,1749001841111,-440.0,0.00018063,2]
[364104786,1749001841120,-440.0,0.00018063,2]
[364104787,1749001841131,-500.95223071,0.00018135,2]
[364104788,1749001841140,-508.49574502,0.00018135,2]
[364104789,1749001841150,-1548.23234826,0.00018141,2]
[364104790,1749001841161,-584.02,0.00018207,2]
[364104791,1749001841170,-217.05268541,0.00018207,2]
[364104792,1749001841181,-440.0,0.00018207,2]
[364104793,1749001841192,-456.28,0.00018207,2]
[364104794,1749001841202,-428.74079701,0.00018207,2]
[364104795,1749001841211,-436.10395859,0.00018207,2]
[364104796,1749001841222,-440.0,0.00018337,2]
[364104797,1749001841231,-440.0,0.00018337,2]
[364104798,1749001841242,-206.03147471,0.00018337,2]
[364104799,1749001841252,-426.37873897,0.00018337,2]
[364104800,1749001841262,-440.0,0.00018337,2]
[364104801,1749001841272,-440.0,0.00018337,2]
[364104802,1749001841283,-440.0,0.00018337,2]
[364104803,1749001841293,-501.37251406,0.00018356,2]
[364104804,1749001841303,-1251.22,0.00018381,2]
[364104805,1749001841313,-440.0,0.00018382,2]
[364104806,1749001841323,-440.0,0.00018382,2]
[364104807,1749001841333,-440.0,0.00018382,2]
[364104808,1749001841342,-444.04221992,0.00018382,2]
[364104809,1749001841352,-440.0,0.00018382,2]
[364104810,1749001841361,-474.78427691,0.00018382,2]
[364104811,1749001841371,-474.38169749,0.00018382,2]
[364104812,1749001841380,-440.0,0.00018382,2]
[364104813,1749001841391,-587.44,0.00018382,2]
[364104814,1749001841400,-1548.23234826,0.00018383,2]
[364104815,1749001841409,-584.02,0.00018481,2]
[364104816,1749001841419,-440.0,0.00018481,2]
[364104817,1749001841428,-456.28,0.00018481,2]
[364104818,1749001841437,-440.0,0.00018611,2]
[364104819,1749001841449,-440.0,0.00018611,2]
[364104820,1749001841458,-440.0,0.00018611,2]
[364104821,1749001841467,-440.0,0.00018611,2]
[364104822,1749001841476,-440.0,0.00018611,2]
[364104823,1749001841486,-1548.23234826,0.00018624,2]
[364104824,1749001841495,-440.0,0.00018656,2]
[364104825,1749001841505,-440.0,0.00018656,2]
[364104826,1749001841515,-440.0,0.00018656,2]
[364104827,1749001841523,-440.0,0.00018656,2]
[364104828,1749001841533,-440.0,0.00018656,2]
[364104829,1749001841543,-587.44,0.00018656,2]
[364104830,1749001841552,-584.02,0.00018755,2]
[364104831,1749001841562,-440.0,0.00018755,2]
[364104832,1749001841571,-456.28,0.00018755,2]
[364104833,1749001841580,-1251.22,0.00018768,2]
[364104834,1749001841590,-580.3813481,0.0001877,2]
[364104835,1749001841601,-440.0,0.0001877,2]
[364104836,1749001841612,-440.0,0.0001877,2]
[364104837,1749001841622,-440.0,0.0001877,2]
[364104838,1749001841632,-1251.22,0.0001877,2]
[364104839,1749001841641,-1251.22,0.00018784,2]
[364104840,1749001841651,-1251.22,0.00018784,2]
[364104841,1749001841660,-444.02955047,0.00018785,2]
[364104842,1749001841670,-456.0948715,0.00018785,2]
[364104843,1749001841679,-446.2529394,0.00018785,2]
[364104844,1749001841689,-502.87760963,0.00018785,2]
[364104845,1749001841698,-440.48983051,0.00018785,2]
[364104846,1749001841708,-460.63438417,0.00018785,2]
[364104847,1749001841717,-441.97511921,0.00018785,2]
[364104848,1749001841727,-444.05612593,0.00018785,2]
[364104849,1749001841736,-445.17908778,0.00018785,2]
[364104850,1749001841746,-435.5747463,0.00018785,2]
[364104851,1749001841755,-430.44351872,0.00018785,2]
[364104852,1749001841764,-447.50886659,0.00018785,2]
[364104853,1749001841773,-444.20666118,0.00018785,2]
[364104854,1749001841783,-453.19006864,0.00018785,2]
[364104855,1749001841793,-451.8900728,0.00018785,2]
[364104856,1749001841802,-448.37525743,0.00018785,2]
[364104857,1749001841811,-441.33120913,0.00018785,2]
[364104858,1749001841819,-454.04085624,0.00018785,2]
[364104859,1749001841828,-428.96527999,0.00018785,2]
[364104860,1749001841837,-451.7783343,0.00018785,2]
[364104861,1749001841846,-401.65866752,0.00018785,2]
[364104862,1749001841855,-167.90662785,0.00018785,2]
[364104863,1749001841864,-446.09345987,0.00018785,2]
[364104864,1749001841872,-440.0,0.00018785,2]
[364104865,1749001841881,-444.86256167,0.00018785,2]
[364104866,1749001841890,-441.88165657,0.00018785,2]
[364104867,1749001841899,-403.40983275,0.00018785,2]
[364104868,1749001841908,-449.52261353,0.00018785,2]
[364104869,1749001841923,-454.01501549,0.00018785,2]
[364104870,1749001841937,-441.14789717,0.00018785,2]
[364104871,1749001841947,-440.0,0.00018785,2]
[364104872,1749001842043,-430.93983685,0.00018785,2]
[364104873,1749001842063,-444.75832504,0.00018785,2]
[364104874,1749001842072,-443.41969687,0.00018785,2]
[364104875,1749001842082,-443.50844061,0.00018785,2]
[364104876,1749001842092,-430.98067615,0.00018785,2]
[364104877,1749001842100,-431.98597586,0.00018785,2]
[364104878,1749001842109,-444.61426903,0.00018785,2]
[364104879,1749001842116,-444.46632042,0.00018785,2]
[364104880,1749001842124,-440.90517857,0.00018785,2]
[364104881,1749001842132,-442.13452241,0.00018785,2]
[364104882,1749001842139,-449.89700149,0.00018785,2]
[364104883,1749001842146,-12670.76136593,0.00018826,2]
[364104884,1749001842153,-160.0,0.00018826,2]
[364104885,1749001842166,-160.0,0.00018826,2]
[364104886,1749001842177,-229.42821335,0.00018826,2]
[364104887,1749001842187,-212.86879254,0.00018826,2]
[364104888,1749001842196,-423.63107087,0.00018826,2]
[364104889,1749001842206,-1548.23234826,0.00018866,2]
[364104890,1749001842215,-440.0,0.00018885,2]
[364104891,1749001842224,-440.0,0.00018885,2]
[364104892,1749001842233,-440.0,0.00018885,2]
[364104893,1749001842241,-440.0,0.00018885,2]
[364104894,1749001842251,-440.0,0.00018885,2]
[364104895,1749001842259,-440.0,0.0001893,2]
[364104896,1749001842267,-440.0,0.0001893,2]
[364104897,1749001842276,-440.0,0.0001893,2]
[364104898,1749001842284,-440.0,0.0001893,2]
[364104899,1749001842293,-440.0,0.0001893,2]
[364104900,1749001842303,-587.44,0.0001893,2]
[364104901,1749001842312,-584.02,0.00019029,2]
[364104902,1749001842321,-440.0,0.00019029,2]
[364104903,1749001842331,-456.28,0.00019029,2]
[364104904,1749001842339,-440.0,0.00019044,2]
[364104905,1749001842349,-440.0,0.00019044,2]
[364104906,1749001842358,-440.0,0.00019044,2]
[364104907,1749001842368,-440.0,0.00019059,2]
[364104908,1749001842376,-447.06161475,0.00019059,2]
[364104909,1749001842386,-1548.23234826,0.00019107,2]
[364104910,1749001842395,-440.0,0.00019159,2]
[364104911,1749001842405,-440.0,0.00019159,2]
[364104912,1749001842414,-440.0,0.00019159,2]
[364104913,1749001842423,-440.0,0.00019159,2]
[364104914,1749001842432,-283.40913648,0.00019159,2]
[364104915,1749001842445,-151.0,0.00019178,2]
[364104916,1749001842454,-179.4741229,0.00019178,2]
[364104917,1749001842468,-440.0,0.00019204,2]
[364104918,1749001842478,-519.71229739,0.00019204,2]
[364104919,1749001842488,-440.0,0.00019204,2]
[364104921,1749001842498,-440.0,0.00019204,2]
[364104922,1749001842508,-440.0,0.00019204,2]
[364104924,1749001842517,-156.587,0.00019233,2]
[364104926,1749001842527,-303.65746759,0.00019288,2]
[364104928,1749001842537,-584.02,0.00019303,2]
[364104930,1749001842546,-440.0,0.00019303,2]
[364104932,1749001842557,-456.28,0.00019303,2]
[364104934,1749001842566,-1251.22,0.00019317,2]
[364104936,1749001842576,-440.0,0.00019318,2]
[364104938,1749001842586,-439.06431716,0.00019318,2]
[364104940,1749001842595,-440.0,0.00019318,2]
[364104942,1749001842605,-440.0,0.00019333,2]
[364104944,1749001842614,-1548.23234826,0.00019348,2]
[364104946,1749001842624,-440.0,0.00019433,2]
[364104948,1749001842633,-440.0,0.00019433,2]
[364104950,1749001842642,-440.0,0.00019433,2]
[364104952,1749001842652,-440.0,0.00019433,2]
[364104954,1749001842661,-440.0,0.00019478,2]
[364104956,1749001842670,-440.0,0.00019478,2]
[364104958,1749001842679,-440.0,0.00019478,2]
[364104960,1749001842689,-468.7477869,0.00019478,2]
[364104962,1749001842701,-584.02,0.00019577,2]
[364104964,1749001842711,-440.0,0.00019577,2]
[364104966,1749001842721,-456.28,0.00019577,2]
[364104968,1749001842730,-1548.23234826,0.0001959,2]
[364104970,1749001842740,-440.0,0.00019592,2]
[364104972,1749001842749,-440.0,0.00019592,2]
[364104974,1749001842758,-440.0,0.00019607,2]
[364104976,1749001842767,-440.0,0.00019707,2]
[364104977,1749001842775,-440.0,0.00019707,2]
[364104978,1749001842784,-440.0,0.00019707,2]
[364104979,1749001842793,-440.0,0.00019707,2]
[364104980,1749001842802,-440.0,0.00019752,2]
[364104982,1749001842811,-440.0,0.00019752,2]
[364104984,1749001842821,-440.0,0.00019752,2]
[364104986,1749001842831,-179.513,0.00019788,2]